Cogmind - Beta 16 @@@ ROGUE MODE // 2025.11.18 @ 11:56:25 // Winter2019/RPGLIKE Player: Jaegerpls Result: Destroyed by Y-64 Sentinel with Wave Gun Performance ------------- Evolutions (5) 2500 Regions Visited (6) 1200 Robots Destroyed (61) 305 Value Destroyed (1758) 1758 Prototype IDs (19) 380 Alien Tech Used (0) 0 Bonus (800) 800 TOTAL SCORE: 6943 Bonus ------- Registered with UFD 300 Met Optimus in HQ 500 Cogmind --------- Core Integrity 0/600 Matter 290/300 Energy 242/350 System Corruption 3% Temperature Cool (9) Movement Hovering (45) Location -5/Upper Caves Parts ------- > --- POWER (1+1) ------ Light Nuclear Core (+) Improved Deuterium Engine > --- PROPULSION (4) --- Improved Gravmag System Antigrav System Gyrokinetic Inverter Linear Gravjet > --- UTILITY (6) ------ Advanced Cooling System Experimental Terrain Scanner Surveybot 17 Chip Transmission Jammer Hacking Suite A0-MCA's Component Scanner > --- WEAPON (2) ------- Powered Cannon > --- INVENTORY (1) ---- Fusion Compressor Peak State ------------ > --- POWER ------------ Light Nuclear Core Improved Deuterium Engine > --- PROPULSION ------- Improved Gravmag System Antigrav System Gyrokinetic Inverter Linear Gravjet > --- UTILITY ---------- Advanced Cooling System Experimental Terrain Scanner Surveybot 17 Chip Transmission Jammer Hacking Suite A0-MCA's Component Scanner > --- WEAPON ----------- Powered Cannon > --- INVENTORY -------- Fusion Compressor [Rating: 82] Favorites ----------- Power Light Nuclear Core Engine Improved Deuterium Engine Power Core Light Nuclear Core Propulsion Hover Unit Wheel Wheel Hover Unit Hover Unit Utility Hacking Suite Device Improved Terrain Scanner Processor Surveybot 17 Chip Hackware Hacking Suite Protection Makeshift Light Armor Plating Weapon Powered Cannon Energy Gun Medium Laser Energy Cannon Powered Cannon Ballistic Gun Assault Rifle Ballistic Cannon Light Cannon Special Melee Weapon Datajack Build | -11 -10 -10 -7 -7 -5 -5 ------- Run | Yrd Mat Sub Rec Scr Fac Upp Slots Evolved 9 | 4 1 1 1 1 1 . Power . | . . . . . . . Propulsion 3 | 1 1 . . 1 . . Utility 5 | 2 . 1 1 . 1 . Weapon 1 | 1 . . . . . . Parts Attached 36 | 6 12 4 4 3 7 . Power 4 | 1 1 . 1 . 1 . Engine 2 | 1 . . 1 . . . Core 2 | . 1 . . . 1 . Reactor . | . . . . . . . Propulsion 9 | 2 3 . . . 4 . Treads . | . . . . . . . Leg . | . . . . . . . Wheel 2 | 2 . . . . . . Hover 7 | . 3 . . . 4 . Flight . | . . . . . . . Utility 15 | 1 4 2 3 3 2 . Device 8 | 1 2 . 2 2 1 . Storage . | . . . . . . . Processor 3 | . 1 . . 1 1 . Hackware 1 | . 1 . . . . . Protection 3 | . . 2 1 . . . Artifact . | . . . . . . . Weapon 8 | 2 4 2 . . . . Energy Gun 2 | 1 . 1 . . . . Energy Cannon 3 | . 2 1 . . . . Ballistic Gun 1 | 1 . . . . . . Ballistic Cannon 1 | . 1 . . . . . Launcher . | . . . . . . . Special Weapon . | . . . . . . . Impact Weapon . | . . . . . . . Slashing Weapon . | . . . . . . . Piercing Weapon . | . . . . . . . Special Melee Weapon 1 | . 1 . . . . . Unidentified Prototypes . | . . . . . . . Parts Lost 1 | . . . . . 1 . Power . | . . . . . . . Propulsion 1 | . . . . . 1 . Utility . | . . . . . . . Weapon . | . . . . . . . Highest Loss Streak 1 | . . . . . 1 . To Critical Strikes . | . . . . . . . Average Backups . | . . . . 1 . 1 Power . | . . . . . . 1 Propulsion . | . . . . . . . Utility . | . . . . . . . Weapon . | . . . . . . . Tool/Special . | . . . . . . . Unused Backups 1 | . . . 1 . . . Power 1 | . . . 1 . . . Propulsion . | . . . . . . . Utility . | . . . . . . . Weapon . | . . . . . . . Tool/Special . | . . . . . . . Average Slot Usage (%) 83 | . 94 82 78 82 86 92 Engine 3 | . 4 . 1 7 7 7 Core 7 | . 6 9 6 5 7 7 Wheel 1 | . 11 . . . . . Hover 24 | . 16 27 25 23 24 28 Device 19 | . 16 18 19 23 22 21 Processor 2 | . 7 . . 4 8 14 Hackware 7 | . 6 9 8 7 7 7 Protection 5 | . . 8 7 2 . . Energy Gun 1 | . 9 . . . . . Energy Cannon 8 | . 8 9 8 7 7 7 Peak Build Rating 82 | 8 15 31 37 52 82 82 Average Rating 34 | 5 12 29 33 47 58 82 On Entrance 32 | . 8 15 31 37 52 82 Avg Prop Armor Cover (%) . | . . . . . . . Naked Turns . | . . . . . . . Heaviest Build 30 | 10 13 20 25 30 28 28 Greatest Support 46 | 20 20 18 18 23 46 46 Greatest Overweight (x) 1 | . 1 1 1 1 1 . Average Overweight (x) . | . . . 1 1 . . Largest Inventory Capacity 1 | 1 1 1 1 1 1 1 Average Capacity 1 | 1 1 1 1 1 1 1 Most Carried 1 | . 1 1 1 1 1 1 Average Carried . | . . . . . . 1 Final Capacity 1 | 1 1 1 1 1 1 1 Final Carried 1 | . 1 . 1 1 1 1 Class Distribution -------------------- 88% | Scavenger-Mutant 6% | Mutant Dominant Class ---------------- Scavenger-Mutant | -10/Materials Scavenger-Mutant | -10/Subcaves Scavenger-Mutant | -7/Recycling Scavenger-Mutant | -7/Scraptown Scavenger-Skirmisher | -5/Factory Scavenger-Scout | -5/Upper Caves Resources | -11 -10 -10 -7 -7 -5 -5 ----------- Run | Yrd Mat Sub Rec Scr Fac Upp Matter Collected 810 | 305 280 70 40 40 75 . Remotely 166 | . 166 . . . . . Salvage Created 2220 | 183 454 606 341 . 636 . Parts 137 | 15 37 44 14 . 27 . Haulers Intercepted 2 | . 1 . . . 1 . Recyclers Shooed . | . . . . . . . Parts Field Recycled . | . . . . . . . Retrieved Matter . | . . . . . . . Parts Self-Destructed 21 | . . 17 . . . 4 Prevented 3 | . . . . . . 3 Parts Restored . | . . . . . . . Kills | -11 -10 -10 -7 -7 -5 -5 ------- Run | Yrd Mat Sub Rec Scr Fac Upp Combat Hostiles Destroyed 45 | . 16 16 4 . 9 . Guns 10 | . 10 . . . . . Cannons 29 | . 6 13 2 . 8 . Classes Destroyed 11 | 2 5 3 . . 1 . Tunneler 5 | 5 . . . . . . Hauler 2 | . 1 . . . 1 . Recycler 2 | 1 . . 1 . . . Operator 1 | . 1 . . . . . Turret 2 | . . 2 . . . . Watcher 4 | . 3 . . . 1 . Swarmer 16 | . 9 4 . . 3 . Grunt 12 | . 7 2 . . 3 . Sentry 6 | . . 1 4 . 1 . Programmer 2 | . . . . . 2 . Subdweller 9 | . . 9 . . . . Best Kill Streak 4 | 4 4 4 3 . 4 . Combat Bots Only 4 | . 3 4 3 . 4 . Max Kills in Single Turn 1 | 1 1 1 1 . 1 . Gunslinging . | . . . . . . . Exploded . | . . . . . . . Melee . | . . . . . . . Uniques/NPCs Destroyed . | . . . . . . . Combat | -11 -10 -10 -7 -7 -5 -5 -------- Run | Yrd Mat Sub Rec Scr Fac Upp Hostile Shots Fired 254 | . 52 94 54 . 51 3 Missed 76 | . 9 30 22 . 15 . Hits 178 | . 43 64 32 . 36 3 Projectile 178 | . 43 64 32 . 36 3 AOE 4 | . . 4 . . . . Critical Strikes 3 | . . 1 . . 2 . Damage Taken 2320 | . 389 992 235 . 636 68 Core 1804 | . 312 728 172 . 534 58 Absorbed by Shields . | . . . . . . . Redirected to Core 1319 | . 235 555 128 . 366 35 Core Remaining (%) 93 | 100 . . . 87 . . Volleys Fired 207 | 15 69 76 15 . 31 1 Largest 2 | 2 2 2 1 . 1 1 Hottest 120 | 70 120 120 120 . 120 120 Shots Fired 302 | 30 137 88 15 . 31 1 Gun 135 | 30 104 1 . . . . Cannon 167 | . 33 87 15 . 31 1 Launcher . | . . . . . . . Special . | . . . . . . . Kinetic 65 | 15 50 . . . . . Thermal 237 | 15 87 88 15 . 31 1 Explosive . | . . . . . . . Electromagnetic . | . . . . . . . Robot Hit Streak 21 | 11 6 12 21 . 10 . Robot Miss Streak 3 | 2 3 3 1 . 3 1 Penetration Max . | . . . . . . . Secondary Targets 1 | . 1 . . . . . Max Gunslinging Chain 1 | . 1 . . . . . Shots Hit Robots 179 | 21 80 47 12 . 19 . Core Hits 65 | 7 29 16 4 . 9 . Critical Kills 9 | . . 6 2 . 1 . Critical Parts Destroyed . | . . . . . . . Critical Strikes 16 | . 7 6 2 . 1 . Burn 7 | . 7 . . . . . Meltdown 9 | . . 6 2 . 1 . Melee Attacks 2 | . 2 . . . . . Impact . | . . . . . . . Slashing . | . . . . . . . Piercing . | . . . . . . . Sneak Attacks 2 | . 2 . . . . . Combat Hostiles . | . . . . . . . Follow-up Attacks . | . . . . . . . Damage Inflicted 5595 | 270 1113 2157 636 . 1419 . Guns 1090 | 270 820 . . . . . Cannons 4505 | . 293 2157 636 . 1419 . Explosions . | . . . . . . . Melee . | . . . . . . . Ramming . | . . . . . . . Kinetic 488 | 118 370 . . . . . Thermal 5107 | 152 743 2157 636 . 1419 . Explosive . | . . . . . . . Electromagnetic . | . . . . . . . Impact . | . . . . . . . Slashing . | . . . . . . . Piercing . | . . . . . . . Highest Corruption 3 | . . . . . 3 3 Average Corruption 2 | . . . . . 2 3 Corruption Purged . | . . . . . . . Corruption Blocked . | . . . . . . . Effects 2 | . . . . . 2 . Message Errors 1 | . . . . . 1 . Parts Rejected 1 | . . . . . 1 . Overload Shots 11 | . . . 1 . 9 1 Effects 1 | . . . . . 1 . Heat Surge 1 | . . . . . 1 . Overflow Damage 226 | . . 78 25 . 123 . Projectiles 226 | . . 78 25 . 123 . Explosions . | . . . . . . . Melee . | . . . . . . . Knockbacks 2 | . 2 . . . . . Impact . | . . . . . . . Kinetic 2 | . 2 . . . . . Secondary . | . . . . . . . Self-Inflicted Damage . | . . . . . . . Shots . | . . . . . . . Rammed . | . . . . . . . Targets Rammed . | . . . . . . . Kicked . | . . . . . . . Crushed . | . . . . . . . Highest Temperature 163 | . 120 . 63 . 163 . Average Temperature 45 | . 46 . 21 . 50 . Received Heat Transfer 516 | . 84 258 66 . 90 18 Siege Activations . | . . . . . . . Martial Activations . | . . . . . . . Shielding Activations . | . . . . . . . Robots Disrupted . | . . . . . . . Combat Hostiles . | . . . . . . . Robots Corrupted . | . . . . . . . Combat Hostiles . | . . . . . . . Parts Fried . | . . . . . . . Impact Corruptions . | . . . . . . . Robots Melted 9 | . . 6 2 . 1 . Combat Hostiles 8 | . . 5 2 . 1 . Parts Melted 21 | 2 4 9 2 . 4 . Heat Transferred 3182 | 444 2516 222 . . . . Parts Sabotaged . | . . . . . . . Parts Stolen . | . . . . . . . Parts Stripped . | . . . . . . . Power Chain Reactions . | . . . . . . . Alert | -11 -10 -10 -7 -7 -5 -5 ------- Run | Yrd Mat Sub Rec Scr Fac Upp Maximum Alert Level 1 | . . . . . 1 . Low Security (%) 97 | 100 100 . 100 . 80 . Level 1 2 | . . . . . 19 . Level 2 . | . . . . . . . Level 3 . | . . . . . . . Level 4 . | . . . . . . . Level 5 . | . . . . . . . High Security . | . . . . . . . Max Security . | . . . . . . . Peak Influence 363 | 10 131 . 126 . 363 . Initial 126 | . . . 126 . . . Average 40 | 3 61 . 18 . 84 . Influence Increases 1492 | 30 477 340 145 . 500 . Destroy 0b10 Robot/C 760 | . 320 180 80 . 180 . Destroy 0b10 Robot/NC 70 | 30 25 . 5 . 10 . Destroy Leader 122 | . 68 10 . . 44 . Successful Hack 122 | . 44 . 57 . 21 . Disable Machine 15 | . 15 . . . . . Destroy Structure 28 | . 5 . 3 . 20 . Lose Combat Pursuer 375 | . . 150 . . 225 . Influence Decreases 1284 | 30 390 163 409 . 137 155 Entered New Map 316 | . . 43 138 . . 135 Time Decay 948 | 30 390 110 271 . 127 20 Lost Part 10 | . . . . . 10 . Lost Ally 10 | . . 10 . . . . Squads Dispatched 3 | . 2 . . . 1 . Investigation 1 | . 1 . . . . . Extermination 1 | . . . . . 1 . Reinforcement 1 | . 1 . . . . . Assault . | . . . . . . . Garrison . | . . . . . . . Intercept . | . . . . . . . Searches Triggered . | . . . . . . . Construction Impeded . | . . . . . . . Haulers Reinforced . | . . . . . . . Active Scanning Responses . | . . . . . . . Cargo Convoy Interrupts . | . . . . . . . Stealth | -11 -10 -10 -7 -7 -5 -5 --------- Run | Yrd Mat Sub Rec Scr Fac Upp Distress Signals 2 | . 2 . . . . . Communications Jammed 2 | . . . . . 2 . Distress Signals 1 | . . . . . 1 . Times Spotted 78 | . 22 28 4 . 23 1 Peak Tracking Total 17 | . 4 6 3 . 17 1 Tactical Retreats 8 | . . 4 . . 4 . Traps | -11 -10 -10 -7 -7 -5 -5 ------- Run | Yrd Mat Sub Rec Scr Fac Upp Traps Triggered 1 | . . 1 . . . . Indirectly . | . . . . . . . Trap Hack Attempts 9 | . 9 . . . . . Triggered . | . . . . . . . Disarmed 4 | . 4 . . . . . Reprogrammed 3 | . 3 . . . . . Reused . | . . . . . . . Traps Extracted . | . . . . . . . Installed . | . . . . . . . Triggered . | . . . . . . . Machines | -11 -10 -10 -7 -7 -5 -5 ---------- Run | Yrd Mat Sub Rec Scr Fac Upp Machines Disabled 2 | . 1 1 . . . . Max in Single Turn 1 | . 1 1 . . . . Machines Repaired . | . . . . . . . Machines Dismantled . | . . . . . . . Machines Sabotaged . | . . . . . . . Overloaded Fab Kills . | . . . . . . . Hacking | -11 -10 -10 -7 -7 -5 -5 --------- Run | Yrd Mat Sub Rec Scr Fac Upp Machines Accessed 35 | . 9 2 12 8 4 . Terminals 15 | . 7 . 6 . 2 . Fabricators 1 | . . . . . 1 . Repair Stations . | . . . . . . . Recycling Units 8 | . 2 . 6 . . . Scanalyzers . | . . . . . . . Garrison Access 1 | . . . . . 1 . Total Hacks 144 | . 25 14 28 69 8 . Successful 128 | . 21 14 21 69 3 . Failed 15 | . 3 . 7 . 5 . Catastrophic 1 | . 1 . . . . . Database Lockouts 1 | . 1 . . . . . Manual 42 | . 17 . 18 . 7 . Terminals 37 | . 21 . 12 . 4 . Fabricators 1 | . . . . . 1 . Repair Stations . | . . . . . . . Recycling Units 20 | . 4 . 16 . . . Scanalyzers . | . . . . . . . Garrison Access 3 | . . . . . 3 . Terminal Hacks 92 | . 8 14 1 69 . . Record 84 | . 2 13 . 69 . . Part Schematic 1 | . . . 1 . . . Robot Analysis 2 | . 2 . . . . . Alert Level 1 | . 1 . . . . . Disarm Traps 1 | . 1 . . . . . Patrol Status 1 | . 1 . . . . . Zone Layout 1 | . 1 . . . . . Proto ID Catalog 1 | . . 1 . . . . Fabricator Hacks . | . . . . . . . Repair Station Hacks . | . . . . . . . Recycling Unit Hacks 10 | . 2 . 8 . . . Report Inventory 9 | . 2 . 7 . . . Retrieve Components 1 | . . . 1 . . . Scanalyzer . | . . . . . . . Garrison Access Hacks . | . . . . . . . Unauthorized Hacks 25 | . 11 . 11 . 3 . Terminals 16 | . 9 . 6 . 1 . Track 1 | . 1 . . . . . Assimilate 1 | . 1 . . . . . Botnet 3 | . 2 . 1 . . . Skim 11 | . 5 . 5 . 1 . Fabricators . | . . . . . . . Repair Stations . | . . . . . . . Recycling Units 7 | . 2 . 5 . . . Reject 7 | . 2 . 5 . . . Scanalyzers . | . . . . . . . Garrison Access 2 | . . . . . 2 . Broadcast 1 | . . . . . 1 . Watchers 1 | . . . . . 1 . Data Cores Recovered . | . . . . . . . Used . | . . . . . . . Hacking Detections 22 | . 8 . 10 . 4 . Full Trace Events . | . . . . . . . Feedback Events . | . . . . . . . Feedback Blocked . | . . . . . . . Robot Schematics Acquired . | . . . . . . . Robots Built . | . . . . . . . Authchips . | . . . . . . . Time . | . . . . . . . Total Robot Build Rating . | . . . . . . . Part Schematics Acquired 1 | . . . 1 . . . Parts Built . | . . . . . . . Authchips . | . . . . . . . Time . | . . . . . . . Total Part Build Rating . | . . . . . . . Part Studies Acquired . | . . . . . . . Parts Repaired . | . . . . . . . Time . | . . . . . . . Parts Recycled . | . . . . . . . Recycled Matter . | . . . . . . . Retrieved Matter . | . . . . . . . Retrieved Components 3 | . . . 3 . . . Parts Scanalyzed . | . . . . . . . Part Schematics Acquired . | . . . . . . . Parts Damaged . | . . . . . . . Bothacking | -11 -10 -10 -7 -7 -5 -5 ------------ Run | Yrd Mat Sub Rec Scr Fac Upp Used RIF Installer . | . . . . . . . Robots Hacked 1 | . 1 . . . . . Non-combat 1 | . 1 . . . . . Combat . | . . . . . . . Robot Hacks Applied 1 | . 1 . . . . . no_distress 1 | . 1 . . . . . Relay Couplers Released . | . . . . . . . Fabnet Peak Effective % . | . . . . . . . Robots Rewired . | . . . . . . . Allies Hacked . | . . . . . . . Hacks Repelled . | . . . . . . . Allies | -11 -10 -10 -7 -7 -5 -5 -------- Run | Yrd Mat Sub Rec Scr Fac Upp Total Allies 1 | . 1 . . . . . Largest Group 1 | . 1 1 . . . . Highest-Rated Group 10 | . 10 10 . . . . Highest-Rated Ally 10 | . 10 10 . . . . Total Orders 2 | . 2 . . . . . ROAM 1 | . 1 . . . . . FOLLOW 1 | . 1 . . . . . Ally Attacks . | . . . . . . . Total Damage . | . . . . . . . Kills . | . . . . . . . Allies Corrupted . | . . . . . . . Allies Melted . | . . . . . . . Intel | -11 -10 -10 -7 -7 -5 -5 ------- Run | Yrd Mat Sub Rec Scr Fac Upp Active Infowar (turns) 8774 | 48 1010 3315 1535 2428 397 41 Terrain 8772 | 48 1010 3315 1535 2426 397 41 Jamming 3523 | . . . 657 2428 397 41 Robot Analysis Total 2 | . 2 . . . . . Derelict Logs Recovered 2 | . . 2 . . . . Drone Launches . | . . . . . . . Drone Recoveries . | . . . . . . . Exploration | -11 -10 -10 -7 -7 -5 -5 ------------- Run | Yrd Mat Sub Rec Scr Fac Upp Turns Passed 8840 | 114 1010 3315 1535 2428 397 41 Spaces Moved 5433 | 43 805 1460 885 1894 334 12 Core 1 | 1 . . . . . . Treads . | . . . . . . . Legs . | . . . . . . . Wheels 260 | 42 218 . . . . . Hover 5172 | . 587 1460 885 1894 334 12 Flight . | . . . . . . . Fastest Speed 43 | 50 52 52 112 112 43 45 Average Speed 100 | 79 60 105 112 112 82 45 Slowest Speed 116 | 80 116 112 112 112 112 45 Overloaded Moves . | . . . . . . . Propulsion Burnouts . | . . . . . . . Robots Hopped . | . . . . . . . Potential Cave-ins . | . . . . . . . Cave-ins Triggered . | . . . . . . . Exploration Rate (%) 55 | 4 93 85 99 88 11 5 Regions Visited 6 Branch Regions 4 Pre-discovered Areas 9 | . . 2 3 4 . . Known Exits Taken 3 | . 1 . 1 . 1 . Unknown Exits Taken 3 | 1 . 1 . 1 . . Scrap Searched 13 | . . 8 . 5 . . Spaces Dug 11 | . . 3 2 . 6 . Terrain Destroyed 24 | . . 10 3 . 10 1 Melee . | . . . . . . . Projectile 24 | . . 10 3 . 10 1 AOE . | . . . . . . . Terrain Rammed . | . . . . . . . Walls Destroyed . | . . . . . . . Machines Disabled . | . . . . . . . Actions | -11 -10 -10 -7 -7 -5 -5 --------- Run | Yrd Mat Sub Rec Scr Fac Upp Total 8519 | 89 1185 3152 1416 2201 428 48 Wait 2729 | 26 254 1566 500 300 48 35 Move 5427 | 42 804 1459 884 1893 333 12 Hop . | . . . . . . . Pick Up 9 | . 3 2 2 1 1 . Fast Attach 24 | 6 9 3 2 2 2 . Attach 5 | . 2 . . 1 2 . Detach 3 | . 3 . . . . . Swap 13 | . 4 1 2 1 5 . Drop 23 | . 7 7 3 3 3 . Fire 207 | 15 69 76 15 . 31 1 Melee 2 | . 2 . . . . . Ram . | . . . . . . . Kick . | . . . . . . . Crush . | . . . . . . . Escape Stasis . | . . . . . . . Rewire . | . . . . . . . Trap 9 | . 9 . . . . . Miscellaneous 68 | . 19 38 8 . 3 . Route ------- -11/Scrapyard -10/Materials (discovered 6 exits: *Mat x3 / *Min x2 / *Sub) -10/Subcaves (discovered 3 exits: *Mat x2 / *Rec) -7/Recycling (discovered 2 exits: *Fac / *Scr) -7/Scraptown (discovered 2 exits: *Fac x2) -5/Factory (discovered 5 exits: Fac x4 / *Upp) -5/Upper Caves (discovered 1 exit: Upp) History --------- Turn | Location | Event 1 | -11/Scrapyard | Upgraded with Propulsion slot (x1) 1 | -11/Scrapyard | Upgraded with Utility slot (x2) 1 | -11/Scrapyard | Upgraded with Weapon slot (x1) 11 | -11/Scrapyard | Discovered new exit (range 15) 115 | -11/Scrapyard | Entered Materials 314 | -10/Materials | Build established: Mutant 407 | -10/Materials | Central database locked down 416 | -10/Materials | Discovered new exit (range 16) 443 | -10/Materials | Identified exit to Mines 471 | -10/Materials | Discovered exit to Mines (range 16) 587 | -10/Materials | Discovered new exit (range 14) 645 | -10/Materials | Loaded intel: 2 recycling unit locations 656 | -10/Materials | Reached level 2 681 | -10/Materials | Identified exit to Subcaves 706 | -10/Materials | Identified exit to Materials 724 | -10/Materials | Learned Storage emergency access door positions 726 | -10/Materials | Learned location of 1 exit from Storage 729 | -10/Materials | Learned location of 2 exits from Materials 739 | -10/Materials | Learned location of 1 exit from Storage 824 | -10/Materials | Upgraded with Propulsion slot (x1) 845 | -10/Materials | Build established: Scavenger-Mutant 1125 | -10/Materials | Entered Subcaves 1125 | -10/Subcaves | Accompanied by 1 ally 1126 | -10/Subcaves | Identified exit to Materials 1127 | -10/Subcaves | Reached level 3 1192 | -10/Subcaves | Learned location of Zion (-7) 1192 | -10/Subcaves | Met a Zionite searching for "candidates" 1338 | -10/Subcaves | Visited 4L-MR0's lab 1393 | -10/Subcaves | Found Powered Cannon 1394 | -10/Subcaves | Attached Powered Cannon, gained temporary slot: Power 1401 | -10/Subcaves | Upgraded with Utility slot (x1) 1467 | -10/Subcaves | Disturbed a concealed Subdweller 1524 | -10/Subcaves | A swath of the cavern ceiling suddenly collapsed 1669 | -10/Subcaves | Shifting Twisted Machinery released Mak. Hammer 2336 | -10/Subcaves | Shifting Twisted Machinery released Sub. Power Source 2618 | -10/Subcaves | Discovered new exit (range 11) 2793 | -10/Subcaves | Visited Clippyterm 2796 | -10/Subcaves | Learned Factory trap positions 2796 | -10/Subcaves | Learned Factory stockpile data 2955 | -10/Subcaves | Shifting Twisted Machinery released Sub. Monowheel 3126 | -10/Subcaves | Learned location of 1 exit from Materials 3228 | -10/Subcaves | Shifting Twisted Machinery released Riot Gun 3439 | -10/Subcaves | A swath of the cavern ceiling suddenly collapsed 4440 | -10/Subcaves | Entered Recycling 4442 | -7/Recycling | Reached level 4 4447 | -7/Recycling | Upgraded with Utility slot (x1) 4790 | -7/Recycling | Scanned before Scraplab entrance 5707 | -7/Recycling | Discovered new exit (range 16) 5718 | -7/Recycling | Learned location of 1 exit from Cetus 5761 | -7/Recycling | Learned location of 2 exits from Lower Caves 5793 | -7/Recycling | Learned location of Lower Caves (-7) 5831 | -7/Recycling | Learned Factory trap positions 5836 | -7/Recycling | Identified exit to Scraptown 5837 | -7/Recycling | Learned location of Extension (-4) 5840 | -7/Recycling | Learned 4 Factory zone layouts 5853 | -7/Recycling | Learned location of 1 exit from Cetus 5878 | -7/Recycling | Learned location of 2 exits from Proximity Caves 5964 | -7/Recycling | Entered Scraplab 5975 | -7/Recycling | Entered Scraptown 5977 | -7/Scraptown | Reached level 5 6173 | -7/Scraptown | Upgraded with Propulsion slot (x1) 6195 | -7/Scraptown | Heard Great Nut preacher, LISTEN AND RECITE! 6218 | -7/Scraptown | Discovered new exit (range 12) 6425 | -7/Scraptown | Visited Bundlers 6501 | -7/Scraptown | Visited UFD Registry 6501 | -7/Scraptown | Registered with UFD as "Technosourcer" 6525 | -7/Scraptown | Visited Scrapoid Research Area 6545 | -7/Scraptown | Visited A0-MCA Data Center 6552 | -7/Scraptown | Given a C+ rating by A0-MCA 6555 | -7/Scraptown | Found A0-MCA's Component Scanner 6577 | -7/Scraptown | Visited Botcube Research 6729 | -7/Scraptown | Visited Supply Room 6746 | -7/Scraptown | Visited Derelict Rescue Squad 6756 | -7/Scraptown | Visited Cartography Club 6815 | -7/Scraptown | Found Surveybot 17 Chip 6817 | -7/Scraptown | Discovered new exit (range 12) 6875 | -7/Scraptown | Learned location of Upper Caves (-5) 6875 | -7/Scraptown | Learned location of Archives (-4) 6875 | -7/Scraptown | Learned location of Armory (-3) 6875 | -7/Scraptown | Learned 16 Materials zone layouts 6875 | -7/Scraptown | Learned 20 Factory zone layouts 6875 | -7/Scraptown | Learned 12 Research zone layouts 6875 | -7/Scraptown | Learned 4 Access zone layouts 6875 | -7/Scraptown | Learned 8 Access zone layouts 6875 | -7/Scraptown | Learned 4 Recycling zone layouts 6875 | -7/Scraptown | Learned 4 Mines zone layouts 6875 | -7/Scraptown | Learned 20 Upper Caves zone layouts 6875 | -7/Scraptown | Learned 8 Proximity Caves zone layouts 6875 | -7/Scraptown | Learned 4 Armory zone layouts 6875 | -7/Scraptown | Learned location of 3 exits from Lower Caves 6875 | -7/Scraptown | Learned location of 2 exits from Factory 6875 | -7/Scraptown | Learned location of 2 exits from Upper Caves 6909 | -7/Scraptown | Visited Sword Containment 6927 | -7/Scraptown | Visited Abandonware Association 6944 | -7/Scraptown | Learned abandonware demo "SHUTEYE.EXE" 6944 | -7/Scraptown | Learned abandonware demo "KABOOM.EXE" 6979 | -7/Scraptown | Visited Infowarlord's Domain 6985 | -7/Scraptown | Found Exp. Terrain Scanner 7225 | -7/Scraptown | Visited Cyclists 7240 | -7/Scraptown | Entered Cyclist Reading Room 7266 | -7/Scraptown | Visited Assassins FH 7311 | -7/Scraptown | Visited Cave Peace 7884 | -7/Scraptown | Visited LU-1G1's Boring Crew 8339 | -7/Scraptown | Met Optimus 8339 | -7/Scraptown | Accepted into 0bPrime 8403 | -7/Scraptown | Entered Factory 8404 | -5/Factory | Identified exit to Upper Caves 8405 | -5/Factory | Identified exit to Factory 8405 | -5/Factory | Reached level 6 8407 | -5/Factory | Loaded intel: 89 trap records 8686 | -5/Factory | Core integrity fell below 50% 8712 | -5/Factory | Reached level 7 8714 | -5/Factory | Core integrity fell below 20% 8718 | -5/Factory | Upgraded with Utility slot (x1) 8800 | -5/Factory | Entered Upper Caves 8801 | -5/Upper Caves | Identified exit to Upper Caves 8841 | -5/Upper Caves | Attracted the attention of an 0b10 checkpoint 8841 | -5/Upper Caves | Destroyed by Y-64 Sentinel with Wave Gun Last Messages --------------- 08747_ P-70 Sage suffers critical hit (Meltdown). 08747_ Imp. Heat Sink melted. 08747_ Antigrav System melted. 08747_ Imp. Heat Sink melted. 08747_ Mic. Fission Core melted. 08750_ System corrupted: Adv. Cooling System rejected. 08750_ Acquired Adv. Cooling System. 08753_ Connecting with Terminal... 08771_ A-15 Conveyor destroyed. 08773_ Acquired 30 matter. 08781_ Dropped Hover Unit. 08789_ Connecting with Garrison Access... 08794_ 0DT7IT96,9NWON9< V0/VLCE ERQA| 08796_ Component scanned: Hvy. Proton Cannon. LOCATION=UPPER CAVES GOAL=ESCAPE Loading 1 Upper Caves exit... Loading 20 Upper Caves zones... 08823_ Penetrated by Slug. 08841_ Y-64 Sentinel: "INTERCEPTING UNREGISTERED DERELICT." Map ----- +----------------------------------------------------+ | ???############################################# | | ?############################################### | | ?############################################### | | ##?############################################# | | ################################################ | | ############################ # ############ | | ############################# # ############ | | ##### ################### # ############# | | #### ############## ## ## ############# | | ############### ### ############ | | ########## # # ############ | | ## ########## # ############ | | ## ######### ## # ############ | | ### ####### ### ################# | | #### ###### ### ################### | | #### #### ### ## ################### | | #### ## ###### ## ################### | | ##### ####### ## ################## | | ###### ####### ################# | | ###### ### ### ? ################# | | ##### ### ### r ################## | | ##### #### ## ################### | | ###### #### ## ##################### | | ####### ## # ##################### | | ####### Y ##################### | | ####### ###;@ ;#################### | | ######## ##### ##################### | | ######### #### #### #################### | | # ####### ## ################ | | ######## ## ################# | | ####### # ################## | | # ###### ## ################## | | # ##### ### ################## | | # ##### ### ################# | | ## #### # #### ################# | | ############ ################# | | ####### ### ################ | | # ###### ###### ################ | | ######## ##### ################# | | # ########## ##### ################## | | ############ ##### ################### | | ############ ### #################### | | #####?####### ####################### | | ?############# ######################## | | ??#############################################? | | ??############################################## | | ????#?#################################?######## | | ?????#########################################?? | | ??????###############################?########?? | | ???????###########################?####?##?##??? | +----------------------------------------------------+ Best States ------------- Heat Dissipation 110 Energy Generation 30 Energy Capacity 350 Matter Stores 300 Matter Capacity 300 Sight Range 16 Robot Scan Range 16 Terrain Scan Range 30 Terrain Scan Density 1510 Jamming Range 12 Armor Coverage 150 Evasion (%) 56 Offensive Hacking 10 Item Schematics ----------------- Imp. Gravmag System | -7/Recycling | Hacked Robot Schematics ------------------ None Fabricated ------------ Nothing Repaired ---------- Nothing Studied --------- None Alien Tech Used ----------------- None Achievements -------------- None Challenges ------------ None RPGLIKE | -11 -10 -10 -7 -7 -5 -5 --------- Run | Yrd Mat Sub Rec Scr Fac Upp Levels Raised 6 | . 1 1 1 1 2 . XP Earned 12880 | 3000 2165 1950 1660 900 2705 500 XP Spent 11990 | 2990 1475 1530 1500 1475 3020 . Upgrades 33 | 11 5 3 2 4 8 . Propulsion Slot 3 | 1 1 . . 1 . . Utility Slot 5 | 2 . 1 1 . 1 . Weapon Slot 1 | 1 . . . . . . Heat Dissipation 9 | 2 2 1 . 1 3 . Energy Generation 1 | . . 1 . . . . Mass Support 1 | . . . . 1 . . Inventory Capacity 1 | 1 . . . . . . Sensor Range 8 | 1 1 . 1 1 4 . Terrain Scan Density 3 | 3 . . . . . . Ranged Accuracy 1 | . 1 . . . . . Protomatter Created 671 | . 206 339 62 . 64 . Integrity Restored 1374 | . 335 793 186 . 60 . Core 1199 | . 277 676 186 . 60 . Parts 175 | . 58 117 . . . . Protomatter Decayed 140 | . 27 69 . . 44 . Game ------ Seed MiniHardenedProjector Manual? 0 Play Time 01:29:09 Cumulative 80.5 hours Start 2025.11.18 @ 11:04:42 End 2025.11.18 @ 11:56:25 Sessions 1 Manual Loads 0 Difficulty Rogue Special Mode Winter2019/RPGLIKE Game No. 73 Rogue 73 Adventurer 0 Explorer 0 Win Type - Total 0 Types 0/0/0/0/0/0/0/0/0/0 Lore% 59 Gallery% 38 Achievement% 36 Wizard Run 0 Options --------- Layout 0 ASCII 0 Keyboard 0 Movement Mouse Keybinds 0 Fullscreen 2 Font 24/Smallcaps Map View 76x50 Zoom Use 0% Tactical HUD 1 Map Filters NONE Filters NONE Steam 1 RUN: 390a7977-db19-42d3-9544-1eabc66a14a2